bitfinex-derivatives/quotes_ETHF0:USTF0_20250115
["timestamp","ask_amount","ask_price","bid_price","bid_amount"]
[1736899752218,8.30971324,3229.1,3228.3,0.4769]
[1736899752219,7.53522324,3229.1,3228.4,2.43245685]
[1736899752528,0.30987,3228.2,3228.1,2.43245685]
[1736899752729,0.3099,3228.0,3227.9,2.43245685]
[1736899755232,0.3099,3227.9,3227.8,0.4506]
[1736899755422,0.3099,3227.9,3227.8,2.88305685]
[1736899757027,0.30993,3227.6,3227.5,2.43245685]
[1736899757825,0.30995,3227.4,3227.3,0.4666]
[1736899759730,0.9922,3227.7,3227.3,0.4666]
[1736899759933,3.2078,3227.9,3227.5,2.43245685]
[1736899760234,3.5177,3227.9,3227.8,2.43245685]
[1736899760936,3.2078,3227.9,3227.8,2.74236685]
[1736899761336,2.2672,3228.4,3228.0,0.30989]
[1736899761337,0.30988,3228.2,3228.0,0.30989]
[1736899761535,0.30988,3228.2,3228.1,2.74233685]
[1736899762032,6.7681645,3228.3,3228.2,0.30987]
[1736899762227,0.30984,3228.6,3228.5,0.30984]
[1736899762434,0.30985,3228.5,3228.4,2.43245685]
[1736899762934,0.30989,3228.0,3227.9,0.9258]
[1736899763327,0.30989,3228.0,3227.9,0.4749]
[1736899763524,0.3099,3227.9,3227.8,2.74236685]
[1736899763831,0.30992,3227.7,3227.6,3.2078]
[1736899764032,0.30992,3227.7,3227.6,3.51773]
[1736899764426,0.30992,3227.7,3227.6,3.2078]
[1736899765137,3.75581656,3227.7,3227.6,3.2078]
[1736899765737,3.44589656,3227.7,3227.2,2.43245685]
[1736899765929,0.30996,3227.3,3227.2,2.43245685]
[1736899766539,0.30999,3227.0,3226.9,6.13685685]
[1736899766735,0.30999,3227.0,3226.9,2.43245685]
[1736899767336,3.98266,3227.5,3227.0,0.30998]
[1736899767337,0.30999,3227.1,3227.0,0.30998]
[1736899768541,3.3353598,3227.4,3226.9,2.43245685]
[1736899768844,0.30996,3227.3,3227.2,2.74242685]
[1736899769036,3.2078,3227.9,3227.2,2.43245685]
[1736899769229,0.30992,3227.8,3227.7,2.74237685]
[1736899769539,3.2078,3227.9,3227.6,0.4866]
[1736899769742,0.30992,3227.7,3227.6,0.4866]
[1736899770343,0.30994,3227.5,3227.4,2.43245685]
[1736899772944,0.30994,3227.5,3227.4,2.74240685]
[1736899773746,0.30994,3227.5,3227.4,2.43245685]
[1736899774445,0.30995,3227.4,3227.3,0.4915]
[1736899775841,0.30997,3227.2,3227.1,2.91905685]
[1736899776146,0.30997,3227.2,3227.1,2.43245685]
[1736899777539,0.473,3227.3,3226.9,0.4496]
[1736899777745,0.30999,3227.0,3226.9,0.4496]
[1736899778547,0.31,3226.9,3226.8,2.92955685]
[1736899779146,0.77495,3227.2,3226.7,3.2078]
[1736899779147,0.31001,3226.8,3226.7,3.2078]
[1736899779343,0.4882,3226.8,3226.2,5.95031685]
[1736899779643,0.31006,3226.3,3226.2,5.64025685]
[1736899780042,0.31006,3226.3,3226.2,5.95032685]
[1736899780746,0.31006,3226.3,3226.2,5.64025685]
[1736899781046,0.31006,3226.3,3226.2,2.74252685]
[1736899781637,0.31006,3226.3,3226.2,2.43245685]
[1736899781851,0.31007,3226.2,3226.1,0.4932]
[1736899782042,0.31007,3226.1,3226.0,0.4858]
[1736899782245,0.77512,3226.5,3225.8,3.2078]
[1736899782246,0.31009,3225.9,3225.8,3.2078]
[1736899782439,3.14778504,3226.1,3225.6,0.4579]
[1736899782639,0.31011,3225.7,3225.6,0.4579]
[1736899782839,0.31014,3225.4,3225.3,2.43245685]
[1736899783253,3.41040274,3225.4,3224.9,0.4604]
[1736899783445,0.31018,3225.0,3224.9,0.4604]
[1736899784051,0.4651,3225.5,3224.8,3.2078]
[1736899784349,0.31027,3224.1,3223.8,7.23071553]
[1736899784852,3.2078,3224.2,3223.6,0.4616]
[1736899785354,0.31031,3223.7,3223.6,0.4616]
[1736899787756,0.31027,3224.1,3223.8,0.31029]
[1736899788051,0.3103,3223.8,3223.6,3.72995361]
[1736899788253,0.31031,3223.7,3223.6,0.4616]
[1736899788558,3.31592469,3224.1,3223.6,0.4616]
[1736899788758,0.3103,3223.8,3223.6,0.77191]
[1736899788955,0.31031,3223.7,3223.6,0.4616]
[1736899789253,3.31592469,3224.1,3223.6,0.4616]
[1736899789254,0.31028,3224.0,3223.8,0.31029]
[1736899789752,0.31027,3224.1,3223.6,3.41964361]
[1736899789954,3.2078,3224.2,3223.6,3.41964361]
[1736899790143,0.31029,3223.9,3223.7,0.3103]
[1736899790550,0.31028,3224.0,3223.8,0.3103]
[1736899791848,3.2078,3224.2,3223.6,3.41964361]
[1736899792057,0.31028,3224.0,3223.8,0.31029]
[1736899792452,3.2078,3224.2,3223.6,3.41964361]
[1736899793556,0.3103,3223.8,3223.6,3.72995361]
[1736899794956,3.2078,3224.2,3223.6,3.41964361]
[1736899795151,0.31029,3223.9,3223.7,0.3103]
[1736899795653,0.3103,3223.8,3223.6,3.72995361]
[1736899796959,0.3103,3223.8,3223.7,0.31031]
[1736899798056,3.2078,3224.2,3223.6,3.41964361]
[1736899798260,0.31024,3224.4,3224.0,2.95804361]
[1736899798457,3.2078,3224.6,3223.7,3.69377]
[1736899798458,3.2078,3224.6,3224.1,0.4722]
[1736899798657,3.2078,3224.2,3223.7,2.918]
[1736899798858,0.3103,3223.8,3223.7,2.918]
[1736899799957,3.98347,3224.2,3223.7,2.918]
[1736899799958,0.31029,3223.9,3223.7,2.918]
[1736899800157,3.51806,3224.2,3224.1,0.31027]
[1736899800362,0.77551,3224.8,3224.3,0.31024]
[1736899800561,3.6581,3224.9,3224.0,2.95804361]
[1736899800869,3.41680776,3224.7,3224.4,0.31023]
[1736899801065,0.31022,3224.6,3224.5,0.4742]
[1736899801362,3.2078,3224.9,3224.5,0.4742]
[1736899801566,0.3102,3224.8,3224.7,0.31021]
[1736899802560,3.2078,3224.9,3224.5,0.4742]
[1736899802767,0.31022,3224.6,3224.5,0.4742]
[1736899803159,3.2078,3224.9,3224.5,0.4742]
[1736899803364,0.31021,3224.8,3224.7,0.31021]
[1736899804066,6.98021,3225.3,3225.0,0.31018]
[1736899804067,0.31018,3225.1,3225.0,0.31018]
[1736899804268,3.2078,3225.3,3225.2,0.31016]
[1736899804471,3.51795,3225.3,3225.2,0.31016]
[1736899804666,0.31015,3225.3,3225.2,0.31016]
[1736899805561,3.98311,3225.7,3225.2,0.31016]
[1736899805761,0.31016,3225.3,3225.2,0.31016]
[1736899805961,0.31016,3225.2,3225.1,0.31016]
[1736899806369,0.31018,3225.0,3224.9,0.79739]
[1736899806569,0.31018,3225.0,3224.9,0.4872]
[1736899806765,0.77543,3225.2,3224.6,2.918]
[1736899806964,0.31021,3224.7,3224.6,2.918]
[1736899807470,1.22553,3225.2,3224.6,5.35762425]
[1736899807659,0.3102,3224.9,3224.8,0.3102]
[1736899807864,0.31021,3224.8,3224.7,0.31021]
[1736899808057,0.31019,3225.0,3224.9,0.31018]
[1736899808258,0.31019,3225.0,3224.6,5.35762425]
[1736899808259,3.45305411,3225.1,3224.7,0.4919]
[1736899808465,0.31019,3225.0,3224.9,0.31018]
[1736899808663,3.2078,3225.4,3224.9,2.43962425]
[1736899808866,3.51795,3225.4,3225.3,0.31015]
[1736899809273,3.2078,3225.4,3225.3,0.77895]
[1736899809564,3.51794,3225.4,3225.3,0.77895]
[1736899810379,3.2078,3225.4,3225.3,0.77895]
[1736899811765,3.51794,3225.4,3225.3,0.4688]
[1736899812669,0.31017,3225.1,3225.0,0.4902]
[1736899812865,3.2078,3225.4,3224.8,0.452]
[1736899813067,0.31019,3224.9,3224.8,0.7622]
[1736899813276,3.56061108,3225.3,3224.8,0.452]
[1736899813467,0.31016,3225.3,3225.2,0.31016]
[1736899814175,0.31016,3225.2,3225.1,2.74978425]
[1736899814375,0.31016,3225.3,3225.2,0.31016]
[1736899815275,0.31016,3225.2,3225.1,2.74979425]
[1736899815978,3.2078,3225.4,3225.1,2.43962425]
[1736899816167,3.2078,3225.4,3225.3,0.31015]
[1736899816373,3.51794,3225.4,3225.3,0.31015]
[1736899816974,3.2078,3225.4,3225.3,0.31015]
[1736899817277,3.2078,3225.8,3225.2,0.4973]
[1736899817482,0.31015,3225.3,3225.2,0.4973]
[1736899817879,0.31019,3224.9,3224.8,2.89162425]
[1736899818080,0.4596,3225.2,3224.8,2.89162425]
[1736899818275,3.2078,3225.4,3225.1,2.43962425]
[1736899818580,3.2078,3225.4,3225.3,0.31015]
[1736899819281,0.31013,3225.6,3225.5,0.31013]
[1736899819978,0.31014,3225.5,3225.4,0.31014]
[1736899820972,0.31015,3225.3,3225.2,0.78166]
[1736899821469,0.31016,3225.2,3225.1,2.74978425]
[1736899821672,2.89922425,3226.0,3224.9,2.918]
[1736899821673,0.31018,3225.0,3224.9,2.918]
[1736899822069,0.31023,3224.5,3224.4,0.76353]
[1736899822379,0.31023,3224.5,3224.4,0.4533]
[1736899822585,0.31025,3224.3,3224.2,5.31407702]
[1736899823083,0.77561,3224.4,3223.9,0.4561]
[1736899823271,3.2078,3224.2,3224.0,2.43962425]
[1736899823475,3.66280323,3224.5,3224.4,0.31024]
[1736899823675,0.77547,3225.0,3224.3,2.43962425]
[1736899823881,0.31023,3224.5,3224.4,0.31023]
[1736899824277,0.31024,3224.4,3224.3,2.74986425]
[1736899825689,3.39833033,3224.8,3224.3,2.43962425]
[1736899825985,0.31017,3225.1,3225.0,0.31017]
[1736899826387,0.31017,3225.2,3225.1,0.31017]
[1736899826588,0.31016,3225.3,3225.2,0.31016]
[1736899828084,0.31016,3225.3,3225.2,2.74978425]
[1736899828282,3.51794,3225.5,3225.4,0.31014]
[1736899828482,0.31012,3225.7,3225.6,0.31011]
[1736899828688,3.5179,3225.9,3225.8,0.3101]
[1736899828884,0.3101,3225.8,3225.7,2.43962425]
[1736899829276,0.3101,3225.8,3225.7,0.31011]
[1736899829481,0.898126,3226.2,3225.4,3.8948726]
[1736899829682,0.3101,3225.9,3225.8,0.31009]
[1736899829890,0.426426,3226.2,3225.4,3.8948726]
[1736899830085,0.31012,3225.7,3225.6,0.31012]
[1736899831177,0.77519,3226.1,3225.4,3.8948726]
[1736899831489,3.2078,3225.5,3224.8,6.1619726]
[1736899831687,0.77543,3225.2,3224.7,4.82047702]
[1736899831882,0.3102,3224.8,3224.7,4.82047702]
[1736899832289,0.3102,3224.8,3224.7,5.13068702]
[1736899832792,0.3102,3224.8,3224.7,0.31021]
[1736899834084,1.71516,3225.4,3224.5,4.7356926]
[1736899834085,0.31022,3224.6,3224.5,4.7356926]
[1736899834285,0.77543,3225.1,3224.5,4.4254726]
[1736899834587,3.2078,3224.9,3224.4,3.2078]
[1736899834792,3.2078,3224.5,3224.0,0.9505]
[1736899834990,0.31027,3224.1,3224.0,0.9505]
[1736899835383,0.31029,3223.9,3223.8,4.82047702]
[1736899835889,0.31031,3223.8,3223.6,3.7420826]
[1736899836092,0.31031,3223.8,3223.7,0.31031]
[1736899836387,0.3103,3223.8,3223.7,0.3103]
[1736899836582,3.2078,3224.1,3223.6,3.4317726]
[1736899836783,0.31028,3224.0,3223.9,0.31028]
[1736899837392,0.31026,3224.2,3224.1,0.31026]
[1736899837691,3.2078,3224.5,3223.9,2.9541726]
[1736899837884,0.31025,3224.4,3224.3,0.31025]
[1736899838883,0.31026,3224.2,3224.1,0.31026]
[1736899839184,0.31025,3224.3,3224.2,0.31025]
[1736899840489,0.31027,3224.1,3224.0,0.78887]
[1736899840699,0.7756,3224.4,3223.6,2.9541726]
[1736899840895,0.77565,3224.2,3223.6,2.9541726]
[1736899841194,3.2078,3224.1,3223.6,2.9541726]
[1736899841398,0.31031,3223.7,3223.6,2.9541726]
[1736899841688,0.7757,3224.0,3223.6,2.9541726]
[1736899841689,0.31028,3224.0,3223.6,2.9541726]
[1736899841890,3.51807,3224.1,3224.0,0.31028]
[1736899842886,0.31027,3224.1,3224.0,0.31028]
[1736899843203,0.77561,3224.4,3223.9,2.9541726]
[1736899843488,3.2078,3224.1,3223.6,2.9541726]
[1736899843692,0.31031,3223.7,3223.6,2.9541726]
[1736899844392,0.3103,3223.8,3223.7,0.3103]
[1736899844987,0.31031,3223.7,3223.6,2.9541726]
[1736899845494,3.2078,3224.1,3223.6,2.9541726]
[1736899845690,0.3103,3223.8,3223.7,0.3103]
[1736899845992,0.3103,3223.8,3223.6,2.9541726]
[1736899845993,3.2078,3224.1,3223.6,2.9541726]
[1736899846292,0.31029,3223.9,3223.8,2.9541726]
[1736899846493,0.31029,3223.9,3223.8,3.2644726]
[1736899846690,3.51807,3224.1,3224.0,0.31028]
[1736899847089,3.2078,3224.1,3223.8,2.9541726]
[1736899847296,0.31028,3224.0,3223.9,0.31028]
[1736899847789,3.2078,3224.1,3223.8,2.9541726]
[1736899847996,3.2078,3224.1,3223.5,3.4270726]
[1736899848199,0.31032,3223.6,3223.5,3.7373926]
[1736899849395,0.31032,3223.6,3223.5,3.22393218]
[1736899849784,0.31031,3223.7,3223.6,0.31031]
[1736899850199,0.3103,3223.8,3223.7,0.3103]
[1736899853703,3.98346,3224.2,3223.8,0.31028]
[1736899853704,0.31029,3223.9,3223.8,0.31028]
[1736899853998,0.31027,3224.1,3224.0,0.31027]
[1736899854603,0.31029,3224.0,3223.9,0.31028]
[1736899855202,3.2078,3224.2,3223.8,2.44071218]
[1736899855405,3.2078,3224.2,3224.1,2.75098218]
[1736899859613,0.31024,3224.4,3224.3,0.31025]
[1736899860314,0.31024,3224.4,3224.2,0.9352]
[1736899860315,0.31025,3224.3,3224.2,0.9352]
[1736899860522,3.2078,3224.3,3224.0,2.918]
[1736899860717,0.31027,3224.1,3224.0,2.918]
[1736899861022,3.2078,3224.3,3224.2,0.31026]
[1736899861219,3.2078,3224.3,3224.2,2.75097218]
[1736899861713,3.51805,3224.3,3224.2,2.75097218]
[1736899862513,3.51805,3224.3,3224.2,2.44071218]
[1736899862814,3.51805,3224.3,3224.0,2.918]
[1736899862815,0.31027,3224.1,3224.0,2.918]
[1736899863419,0.31027,3224.1,3224.0,0.31028]
[1736899863809,3.2078,3224.3,3223.9,2.44071218]
[1736899864010,0.31028,3224.0,3223.9,2.44071218]
[1736899864414,0.31028,3224.0,3223.9,2.75100218]
[1736899864609,0.31028,3224.0,3223.9,2.44071218]
[1736899864814,0.31031,3223.8,3223.7,0.3103]
[1736899865513,0.31032,3223.5,3223.4,3.2078]
[1736899865713,3.98352,3223.9,3223.3,2.44071218]
[1736899865714,3.2078,3223.9,3223.3,2.44071218]
[1736899865914,3.2078,3223.9,3223.8,2.75101218]
[1736899866410,3.51809,3223.9,3223.8,2.44071218]
[1736899866616,3.98355,3223.9,3223.4,3.2078]
[1736899866812,0.31032,3223.5,3223.4,3.2078]
[1736899867418,0.31032,3223.5,3223.4,0.31033]
[1736899869117,0.31032,3223.5,3223.2,2.44071218]
[1736899869118,0.31034,3223.3,3223.2,2.75106218]
[1736899869316,0.31034,3223.3,3223.2,2.44071218]
[1736899869822,0.31034,3223.3,3223.2,2.75106218]
[1736899870217,3.2078,3223.9,3223.2,2.44071218]
[1736899870420,3.2078,3223.9,3223.3,2.44071218]
[1736899870716,3.2078,3223.9,3223.3,2.75105218]
[1736899870717,0.31033,3223.4,3223.3,2.75105218]
[1736899871117,0.31033,3223.4,3223.3,2.44071218]
[1736899871913,1.24378,3223.7,3223.1,0.4986]
[1736899871914,0.31035,3223.2,3223.1,0.4986]
[1736899872119,0.31035,3223.2,3222.7,2.918]
[1736899872120,0.31042,3222.6,3222.5,0.31041]
[1736899872313,0.31041,3222.7,3222.6,0.3104]
[1736899872518,0.31041,3222.7,3222.6,2.75111218]
[1736899872720,3.6848,3223.4,3222.6,2.44071218]
[1736899872917,0.477,3223.4,3223.1,2.44071218]
[1736899873225,0.31035,3223.2,3223.1,2.75107218]
[1736899873723,0.31035,3223.2,3223.1,2.44071218]
[1736899874621,0.31038,3223.0,3222.9,0.31038]
[1736899875717,0.77587,3223.3,3222.8,2.89371218]
[1736899875917,0.31042,3222.6,3222.5,2.44071218]
[1736899876129,0.31042,3222.6,3222.5,2.75112218]
[1736899876328,0.31042,3222.6,3222.5,3.20912218]
[1736899877223,3.98375,3223.0,3222.5,2.89871218]
[1736899877429,0.31041,3222.7,3222.6,0.31041]
[1736899877728,0.3104,3222.8,3222.7,0.31039]
[1736899877914,0.31041,3222.7,3222.6,0.3104]
[1736899879521,0.31038,3223.0,3222.9,0.31037]
[1736899879727,0.31038,3223.0,3222.9,2.75108218]
[1736899879927,0.31041,3222.7,3222.6,2.75112218]
[1736899880426,0.3104,3222.8,3222.7,0.31039]
[1736899881531,0.3104,3222.7,3222.6,2.75112218]
[1736899882936,6.46061649,3223.0,3222.2,0.9436]
[1736899883225,0.31044,3222.3,3222.2,0.4582]
[1736899884625,0.31045,3222.2,3222.1,0.4891]
[1736899885331,0.31045,3222.2,3222.1,0.79956]
[1736899885927,3.2078,3223.1,3222.1,2.92981218]
[1736899886129,0.31035,3223.3,3223.2,0.31035]
[1736899886333,3.51813,3223.5,3223.4,0.31033]
[1736899886534,3.2078,3223.5,3223.3,0.4592]
[1736899886731,0.31033,3223.4,3223.3,0.4592]
[1736899886927,7.2527839,3223.5,3223.4,0.31033]
[1736899887330,5.7541839,3223.5,3223.4,0.31033]
[1736899887732,0.31029,3223.9,3223.8,0.3103]
[1736899888134,0.3103,3223.8,3223.7,2.75101218]
[1736899888626,0.31028,3224.0,3223.9,0.31029]
[1736899888833,0.31024,3224.4,3224.2,0.31026]
[1736899889036,0.31024,3224.4,3223.6,0.77578]
[1736899889037,3.6708,3224.5,3224.1,0.31026]
[1736899889237,0.31027,3224.2,3224.1,0.31026]
[1736899890137,0.31024,3224.4,3224.3,0.31024]
[1736899891335,3.74071218,3225.3,3224.3,2.44071218]
[1736899891336,3.2078,3225.0,3224.3,2.44071218]
[1736899891541,3.2078,3225.0,3224.2,3.2078]
[1736899891542,0.31021,3224.8,3224.7,0.3102]
[1736899892239,0.31021,3224.8,3224.7,0.7701]
[1736899892833,0.31019,3224.9,3224.8,0.31019]
[1736899893034,3.2078,3225.0,3224.9,0.31019]
[1736899893235,3.2078,3225.0,3224.9,2.75090218]
[1736899894338,0.4992,3225.7,3224.9,2.75090218]
[1736899894339,3.2078,3225.5,3224.9,2.44071218]
[1736899894544,3.2078,3225.5,3225.3,2.44071218]
[1736899894744,3.51794,3225.5,3225.3,2.75085218]
[1736899895440,0.31014,3225.5,3225.3,2.75085218]
[1736899895744,3.5179,3225.9,3225.3,2.44071218]
[1736899895944,3.5179,3225.9,3225.6,2.44071218]
[1736899896343,0.3101,3225.8,3225.6,2.75083218]
[1736899896847,3.5179,3225.9,3225.7,0.31011]
[1736899897937,3.5179,3225.9,3225.6,2.44071218]
[1736899898134,3.2078,3225.9,3225.6,2.44071218]
[1736899898346,3.5179,3225.9,3225.6,2.75083218]
[1736899898540,0.31011,3225.8,3225.6,2.75083218]
[1736899899240,0.3101,3225.8,3225.6,2.44071218]
[1736899899642,0.3101,3225.8,3225.6,2.75083218]
[1736899899848,3.2078,3225.9,3225.6,2.44071218]
[1736899900145,3.5179,3225.9,3225.7,0.31011]
[1736899900737,0.31011,3225.7,3225.6,2.44071218]
[1736899901140,3.2078,3225.9,3225.6,2.44071218]
[1736899901336,0.31011,3225.8,3225.6,2.75083218]
[1736899901646,0.31011,3225.7,3225.6,2.44071218]
[1736899902235,3.2078,3225.9,3225.6,2.44071218]
[1736899902441,0.3101,3225.8,3225.3,2.75086218]
[1736899902646,0.31013,3225.5,3225.4,0.31014]
[1736899903447,0.31013,3225.5,3225.3,2.75086218]
[1736899903949,0.31013,3225.6,3225.5,0.31013]
[1736899904439,0.9246,3225.8,3225.5,0.31013]
[1736899904642,0.31013,3225.6,3225.5,0.31013]
[1736899905547,0.31012,3225.7,3225.6,0.31012]
[1736899905745,0.9246,3225.8,3225.3,2.44071218]
[1736899905947,0.31013,3225.6,3225.5,0.31013]
[1736899908444,0.9246,3225.8,3225.3,2.44071218]
[1736899908647,0.31014,3225.5,3225.4,0.31014]
[1736899908958,0.31013,3225.6,3225.5,0.31012]
[1736899909249,3.2078,3225.9,3225.8,0.3101]
[1736899909451,3.51789,3225.9,3225.8,2.75081218]
[1736899909951,3.2078,3225.9,3225.6,0.4958]
[1736899910153,0.31012,3225.7,3225.6,0.31012]
[1736899910752,0.31012,3225.6,3225.5,2.44071218]
[1736899912343,0.31012,3225.6,3225.5,2.75084218]
[1736899915958,0.31012,3225.6,3225.5,2.44071218]
[1736899916155,0.31014,3225.4,3225.3,0.31015]
[1736899916349,0.31014,3225.5,3225.3,0.31015]
[1736899916551,3.2078,3225.9,3225.2,3.43041218]
[1736899916850,3.5179,3225.9,3225.8,0.3101]
[1736899917052,3.5179,3225.9,3225.7,2.75082218]
[1736899917252,0.3101,3225.9,3225.7,2.75082218]
[1736899917441,0.3101,3225.9,3225.7,2.44071218]
[1736899917648,0.31009,3226.0,3225.8,0.3101]
[1736899917847,0.31009,3226.0,3225.8,0.4779]
[1736899918055,0.9304,3226.2,3225.8,0.788]
[1736899918248,0.31009,3225.9,3225.8,0.788]
[1736899918449,0.31008,3226.1,3225.9,0.31009]
[1736899918656,0.31008,3226.0,3225.9,0.31009]
[1736899920350,0.9304,3226.2,3226.1,0.31007]
[1736899920554,3.2078,3226.3,3226.2,0.31007]
[1736899921756,0.4838,3226.7,3226.1,5.64851218]
[1736899921757,0.79382,3226.7,3226.1,5.64851218]
[1736899921956,0.79382,3226.7,3226.5,0.31003]
[1736899922157,0.31003,3226.6,3226.5,0.31003]
[1736899922358,0.31004,3226.5,3226.3,0.31005]
[1736899923259,0.31004,3226.5,3226.1,5.64851218]
[1736899923463,0.31004,3226.5,3226.4,2.75076218]
[1736899923958,0.79382,3226.7,3226.6,0.31003]
[1736899925061,0.4838,3226.7,3226.6,0.31003]
[1736899925263,0.31,3227.0,3226.6,0.31003]
[1736899925465,4.1422,3227.3,3226.7,2.44071218]
[1736899925664,4.1422,3227.3,3227.2,0.30997]
[1736899925960,3.6833,3227.3,3227.2,0.30997]
[1736899926155,3.6833,3227.3,3227.1,2.75068218]
[1736899926359,0.30997,3227.2,3227.1,2.75068218]
[1736899926653,3.6833,3227.3,3227.2,0.30997]
[1736899926654,3.99326,3227.3,3227.2,0.30997]
[1736899926856,0.30997,3227.2,3227.1,2.75069218]
[1736899927858,0.30997,3227.2,3227.1,2.44071218]
[1736899928157,0.31003,3226.6,3226.5,3.2078]
[1736899928957,0.31005,3226.4,3226.3,2.44071218]
[1736899929154,3.9828,3226.9,3226.0,7.09241218]
[1736899929358,2.44071218,3227.0,3226.0,2.44071218]
[1736899929359,0.31007,3226.1,3226.0,2.44071218]
[1736899929568,0.3101,3225.8,3225.7,2.44071218]
[1736899930663,0.3101,3225.9,3225.7,2.75082218]
[1736899930865,0.4909,3226.0,3225.7,2.44071218]
[1736899930866,0.3101,3225.8,3225.7,2.44071218]
[1736899931061,0.4909,3226.0,3225.7,2.44071218]
[1736899931361,3.2078,3226.8,3225.9,3.2078]
[1736899931557,0.9419,3227.0,3226.6,2.44071218]
[1736899931762,0.9419,3227.0,3226.9,2.75070218]
[1736899931763,3.3465745,3227.0,3226.9,2.75070218]
[1736899931961,0.30998,3227.1,3226.9,2.75070218]
[1736899932156,3.6588,3227.4,3226.9,2.44071218]
[1736899932358,3.2078,3227.4,3227.3,2.75067218]
[1736899933467,3.99151,3227.9,3227.6,0.30993]
[1736899933662,3.99151,3227.9,3227.7,2.44071218]
[1736899933963,3.6816,3227.9,3227.7,2.44071218]
[1736899934364,3.99151,3227.9,3227.7,2.44071218]
[1736899934862,0.30991,3227.8,3227.7,2.44071218]
[1736899935257,0.30994,3227.5,3227.4,2.44071218]
[1736899935456,0.30996,3227.4,3227.2,6.1258]
[1736899936360,0.30996,3227.4,3227.2,6.43577]
[1736899936563,0.30996,3227.3,3227.2,6.1258]
[1736899936865,0.30997,3227.2,3226.8,0.4798]
[1736899937055,0.30996,3227.3,3226.8,0.4798]
[1736899937365,0.30997,3227.2,3226.9,0.30999]
[1736899938469,0.30997,3227.2,3227.0,0.30999]
[1736899942167,3.52523923,3227.4,3226.8,0.4798]
[1736899942371,0.4671,3227.7,3227.0,3.2078]
[1736899942567,0.4738,3227.4,3226.6,6.15909258]
[1736899942872,0.30999,3227.0,3226.7,0.31001]
[1736899943166,0.31002,3226.7,3226.6,2.95129258]
[1736899943463,3.40454765,3226.9,3226.6,2.95129258]
[1736899943668,0.4606,3227.3,3226.6,2.95129258]
[1736899943868,0.4606,3227.3,3226.9,0.30999]
[1736899944172,0.30998,3227.1,3226.8,3.2078]
[1736899944368,0.30998,3227.1,3226.9,0.31]
[1736899944666,0.30999,3227.0,3226.8,3.51781]
[1736899945463,0.4606,3227.3,3226.6,3.42339258]
[1736899945770,0.4606,3227.3,3226.4,3.2078]
[1736899945771,0.31003,3226.6,3226.4,3.2078]
[1736899945973,0.31004,3226.5,3226.4,3.2078]
[1736899946466,0.31004,3226.5,3226.3,0.78005]
[1736899946772,0.31007,3226.2,3226.1,0.4834]
[1736899946964,0.4887,3226.4,3226.0,4.82551898]
[1736899947271,0.4887,3226.4,3226.0,5.13559898]
[1736899947272,0.31007,3226.2,3226.0,5.13559898]
[1736899947468,0.31007,3226.2,3225.9,8.20497847]
[1736899947469,0.4887,3226.4,3225.9,0.9667]
[1736899947659,0.4887,3226.4,3225.9,0.4821]
[1736899947660,0.31008,3226.0,3225.9,0.4821]
[1736899947969,0.31008,3226.0,3225.8,3.26139258]
[1736899948165,0.31008,3226.1,3225.9,0.31009]
[1736899948367,0.31007,3226.2,3226.0,0.31008]
[1736899948570,3.2078,3226.6,3226.1,2.95129258]
[1736899948571,3.51783,3226.6,3226.1,2.95129258]
[1736899948869,1.32,3226.9,3226.1,3.40109258]
[1736899949166,0.31004,3226.6,3226.1,3.40109258]
[1736899949472,0.31004,3226.5,3226.3,0.31005]
[1736899949771,0.31002,3226.7,3226.5,0.31004]
[1736899950072,0.31003,3226.6,3226.5,0.31004]
[1736899951266,0.31001,3226.8,3226.6,0.31002]
[1736899951461,0.31001,3226.8,3226.2,0.4689]
[1736899951658,3.66123562,3226.9,3226.7,0.31002]
[1736899951865,4.47689,3227.0,3226.8,0.31001]
[1736899952064,3.2078,3227.0,3226.7,2.95129258]
[1736899952261,3.2078,3227.0,3226.9,0.31]
[1736899953172,0.30997,3227.2,3227.0,0.30998]
[1736899953870,3.51775,3227.4,3227.3,0.30996]
[1736899954072,3.2078,3227.4,3227.0,2.95129258]
[1736899954366,0.30996,3227.3,3227.2,0.30996]
[1736899955370,0.30996,3227.3,3227.0,2.95129258]
[1736899955571,0.30996,3227.3,3227.2,0.30997]
[1736899955769,0.30997,3227.2,3227.0,3.26127258]
[1736899956068,3.2078,3227.4,3227.0,2.95129258]
[1736899956468,0.30996,3227.3,3227.1,0.30997]
[1736899956863,3.2078,3227.4,3226.9,0.4945]
[1736899957067,3.2078,3227.4,3226.8,0.4792]
[1736899957459,0.31,3226.9,3226.8,0.4792]
[1736899957862,0.31,3226.9,3226.8,0.78921]
[1736899958069,3.2078,3227.4,3226.8,0.4792]
[1736899958265,1.8027027,3228.5,3226.8,0.4792]
[1736899958266,3.2078,3227.8,3227.3,2.43599794]
[1736899958467,3.51772,3227.8,3227.6,2.74591794]
[1736899958667,3.51772,3227.8,3227.6,2.74592794]
[1736899958863,3.51772,3227.8,3227.6,2.43599794]
[1736899959063,3.51772,3227.8,3227.7,0.30992]
[1736899959559,3.51772,3227.8,3227.6,2.43599794]
[1736899959560,3.2078,3227.8,3227.6,2.43599794]
[1736899959763,3.2078,3227.8,3227.3,2.43599794]
[1736899959964,0.30995,3227.4,3227.3,2.43599794]
[1736899961576,0.30998,3227.1,3227.0,2.43599794]
[1736899962075,3.2078,3227.4,3226.8,0.4792]
[1736899962271,0.31,3226.9,3226.8,0.4792]
[1736899962669,0.31,3226.9,3226.8,0.78921]
[1736899963872,0.31,3226.9,3226.8,0.4792]
[1736899964267,0.9116,3227.2,3226.9,0.30999]
[1736899964268,0.30999,3227.0,3226.9,0.30999]
[1736899965068,3.51777,3227.3,3227.2,0.30997]
[1736899965275,0.79534,3227.6,3227.5,0.30994]
[1736899965469,0.79534,3227.6,3227.5,2.74593794]